fUST/lending_fUST_20250302
["ID","MTS","AMOUNT","RATE_DAILY","PERIOD"]
[355009737,1740865842022,-500.0,0.00024657,2]
[355009738,1740865842032,-172855.44,0.00024657,2]
[355009739,1740865842042,-500.0,0.00024657,2]
[355009740,1740865842051,-500.0,0.00024657,2]
[355009741,1740865842060,-708.1,0.00024657,2]
[355009742,1740865842070,-1016.72,0.00024657,2]
[355009743,1740865842080,-500.0,0.00024657,2]
[355009744,1740865842089,-500.0,0.00024657,2]
[355009745,1740865842099,-500.0,0.00024657,2]
[355009746,1740865842109,-548.03,0.00024657,2]
[355009747,1740865842118,-500.0,0.00024657,2]
[355009748,1740865842128,-500.0,0.00024657,2]
[355009749,1740865842138,-835.93,0.00024657,2]
[355009750,1740865842147,-500.0,0.00024657,2]
[355009751,1740865842159,-3404.99,0.00024657,2]
[355009752,1740865842173,-500.0,0.00024657,2]
[355009753,1740865842183,-514.16259709,0.00024657,2]
[355009754,1740865842193,-500.0,0.00024657,2]
[355009755,1740865842202,-500.0,0.00024657,2]
[355009756,1740865842212,-500.0,0.00024657,2]
[355009757,1740865842222,-500.0,0.00024657,2]
[355009758,1740865842231,-713.04,0.00024657,2]
[355009759,1740865842240,-1884.58,0.00024657,2]
[355009760,1740865842249,-500.0,0.00024657,2]
[355009761,1740865842258,-200.0,0.00024657,2]
[355009762,1740865842268,-1033.63,0.00024657,2]
[355009763,1740865842277,-536.47727255,0.00024657,2]
[355009764,1740865842295,-1211.77,0.00024657,2]
[355009765,1740865842305,-557.01,0.00024657,2]
[355009766,1740865842314,-500.0,0.00024657,2]
[355009768,1740865842324,-500.0,0.00024657,2]
[355009770,1740865842334,-2235.03,0.00024657,2]
[355009771,1740865842343,-3413.83,0.00024657,2]
[355009772,1740865842353,-910.58,0.00024657,2]
[355009773,1740865842362,-4306.34,0.00024657,2]
[355009774,1740865842371,-500.0,0.00024657,2]
[355009775,1740865842381,-1975.06,0.00024657,2]
[355009776,1740865842391,-500.0,0.00024657,2]
[355009777,1740865842401,-764.64,0.00024657,2]
[355009778,1740865842410,-500.0,0.00024657,2]
[355009779,1740865842419,-500.0,0.00024657,2]
[355009780,1740865842429,-993.45,0.00024657,2]
[355009782,1740865842438,-1332.32,0.00024657,2]
[355009783,1740865842447,-500.0,0.00024657,2]
[355009784,1740865842457,-500.0,0.00024657,2]
[355009785,1740865842466,-1827.1,0.00024657,2]
[355009786,1740865842476,-500.0,0.00024657,2]
[355009787,1740865842486,-500.0,0.00024657,2]
[355009788,1740865842496,-500.0,0.00024657,2]
[355009791,1740865842505,-500.0,0.00024657,2]
[355009793,1740865842515,-500.0,0.00024657,2]
[355009796,1740865842525,-641.28,0.00024657,2]
[355009800,1740865842536,-500.0,0.00024657,2]
[355009802,1740865842546,-697.14,0.00024657,2]
[355009805,1740865842558,-500.0,0.00024657,2]
[355009808,1740865842569,-500.0,0.00024657,2]
[355009809,1740865842578,-500.0,0.00024657,2]
[355009811,1740865842589,-500.0,0.00024657,2]
[355009813,1740865842598,-719.29,0.00024657,2]
[355009815,1740865842607,-14467.93,0.00024657,2]
[355009816,1740865842617,-1028.98,0.00024657,2]
[355009817,1740865842626,-500.0,0.00024657,2]
[355009819,1740865842636,-500.0,0.00024657,2]
[355009821,1740865842645,-1316.85,0.00024657,2]
[355009823,1740865842655,-500.0,0.00024657,2]
[355009825,1740865842664,-500.0,0.00024657,2]
[355009827,1740865842674,-500.0,0.00024657,2]
[355009829,1740865842683,-1060.02,0.00024657,2]
[355009831,1740865842693,-500.0,0.00024657,2]
[355009833,1740865842702,-500.0,0.00024657,2]
[355009835,1740865842711,-500.0,0.00024657,2]
[355009837,1740865842721,-723.94,0.00024657,2]
[355009838,1740865842730,-1802.02,0.00024657,2]
[355009839,1740865842739,-500.0,0.00024657,2]
[355009840,1740865842749,-207.29819948,0.00024657,2]
[355009841,1740865842759,-7079.6,0.00024657,2]
[355009842,1740865842768,-500.0,0.00024657,2]
[355009843,1740865842778,-500.0,0.00024657,2]
[355009844,1740865842788,-500.0,0.00024657,2]
[355009845,1740865842798,-717.71,0.00024657,2]
[355009846,1740865842807,-500.0,0.00024657,2]
[355009847,1740865842816,-500.0,0.00024657,2]
[355009848,1740865842826,-500.0,0.00024657,2]
[355009849,1740865842835,-4844.06,0.00024657,2]
[355009850,1740865842845,-897.19,0.00024657,2]
[355009851,1740865842855,-500.0,0.00024657,2]
[355009852,1740865842864,-500.0,0.00024657,2]
[355009853,1740865842874,-500.0,0.00024657,2]
[355009854,1740865842884,-500.0,0.00024657,2]
[355009855,1740865842894,-500.0,0.00024657,2]
[355009856,1740865842904,-9915.36,0.00024657,2]
[355009857,1740865842913,-500.0,0.00024657,2]
[355009858,1740865842923,-500.0,0.00024657,2]
[355009859,1740865842932,-1789.36,0.00024657,2]
[355009860,1740865842942,-749.64,0.00024657,2]
[355009861,1740865842951,-793.99,0.00024657,2]
[355009862,1740865842961,-500.0,0.00024657,2]
[355009863,1740865842970,-500.0,0.00024657,2]
[355009864,1740865842980,-500.0,0.00024657,2]
[355009865,1740865842989,-500.0,0.00024657,2]
[355009866,1740865842999,-612.24,0.00024657,2]
[355009867,1740865843008,-992.45,0.00024657,2]
[355009868,1740865843017,-1220.97,0.00024657,2]
[355009869,1740865843027,-500.0,0.00024657,2]
[355009870,1740865843037,-6263.62,0.00024657,2]
[355009871,1740865843046,-500.0,0.00024657,2]
[355009872,1740865843055,-1332.97,0.00024657,2]
[355009873,1740865843064,-500.0,0.00024657,2]
[355009874,1740865843074,-500.0,0.00024657,2]
[355009875,1740865843083,-500.0,0.00024657,2]
[355009876,1740865843093,-500.0,0.00024657,2]
[355009877,1740865843102,-29909.84,0.00024657,2]
[355009878,1740865843111,-2844.36,0.00024657,2]
[355009879,1740865843122,-500.0,0.00024657,2]
[355009880,1740865843135,-500.0,0.00024657,2]
[355009881,1740865843145,-519.53789569,0.00024657,2]
[355009882,1740865843154,-500.0,0.00024657,2]
[355009883,1740865843164,-500.0,0.00024657,2]
[355009884,1740865843173,-766.2,0.00024657,2]
[355009885,1740865843183,-500.0,0.00024657,2]
[355009886,1740865843194,-1338.98,0.00024657,2]
[355009887,1740865843203,-13654.62,0.00024657,2]
[355009888,1740865843213,-500.0,0.00024657,2]
[355009889,1740865843223,-500.0,0.00024657,2]
[355009890,1740865843232,-500.0,0.00024657,2]
[355009891,1740865843242,-1174.39,0.00024657,2]
[355009892,1740865843251,-1000.0,0.00024657,5]
[355009893,1740865843262,-2866.9,0.00024657,2]
[355009894,1740865843271,-3050.65,0.00024657,2]
[355009895,1740865843280,-2057.02,0.00024657,2]
[355009896,1740865843291,-938.36,0.00024657,2]
[355009897,1740865843300,-1450.21,0.00024657,2]
[355009898,1740865843310,-5637.78,0.00024657,2]
[355009899,1740865843320,-858.8,0.00024657,2]
[355009900,1740865843329,-1441.91,0.00024657,2]
[355009901,1740865843339,-500.0,0.00024657,2]
[355009902,1740865843349,-500.0,0.00024657,2]
[355009903,1740865843358,-500.0,0.00024657,2]
[355009904,1740865843368,-500.0,0.00024657,2]
[355009905,1740865843377,-546.41,0.00024657,2]
[355009906,1740865843387,-9348.65,0.00024657,2]
[355009907,1740865843396,-457.19920763,0.00024657,2]
[355009908,1740865843406,-500.0,0.00024657,2]
[355009909,1740865843416,-500.0,0.00024657,2]
[355009910,1740865843425,-752.72,0.00024657,2]
[355009911,1740865843435,-629.78885337,0.00024657,2]
[355009912,1740865843445,-500.0,0.00024657,2]
[355009913,1740865843455,-500.0,0.00024657,2]
[355009914,1740865843464,-973.28,0.00024657,2]
[355009915,1740865843474,-500.0,0.00024657,2]
[355009916,1740865843483,-500.0,0.00024657,2]
[355009917,1740865843493,-454.30551841,0.00024657,2]
[355009918,1740865843503,-500.0,0.00024657,2]
[355009919,1740865843512,-500.0,0.00024657,2]
[355009920,1740865843522,-1190.61,0.00024657,2]
[355009921,1740865843532,-500.0,0.00024657,2]
[355009922,1740865843542,-2980.87,0.00024657,2]
[355009923,1740865843557,-500.0,0.00024657,2]
[355009924,1740865843566,-500.0,0.00024657,2]
[355009925,1740865843576,-500.0,0.00024657,2]
[355009926,1740865843585,-500.0,0.00024657,2]
[355009927,1740865843595,-500.0,0.00024657,2]
[355009928,1740865843605,-500.0,0.00024657,2]
[355009929,1740865843614,-500.0,0.00024657,2]
[355009930,1740865843624,-539.63,0.00024657,2]
[355009931,1740865843633,-1014.87,0.00024657,2]
[355009932,1740865843643,-500.0,0.00024657,2]
[355009933,1740865843653,-500.0,0.00024657,2]
[355009934,1740865843662,-1765.74,0.00024657,2]
[355009935,1740865843671,-3437.15,0.00024657,2]
[355009936,1740865843680,-500.0,0.00024657,2]
[355009937,1740865843689,-500.0,0.00024657,2]
[355009938,1740865843700,-500.0,0.00024657,2]
[355009939,1740865843710,-500.0,0.00024657,2]
[355009940,1740865843719,-500.0,0.00024657,2]
[355009941,1740865843729,-604.33,0.00024657,2]
[355009942,1740865843738,-500.0,0.00024657,2]
[355009943,1740865843747,-1857.9,0.00024657,2]
[355009944,1740865843757,-1367.29,0.00024657,2]
[355009945,1740865843768,-785.26,0.00024657,2]
[355009946,1740865843777,-500.0,0.00024657,2]
[355009947,1740865843787,-8615.37,0.00024657,2]
[355009948,1740865843797,-500.0,0.00024657,2]
[355009949,1740865843806,-280.9721776,0.00024658,2]
[355009950,1740865843816,-306.0,0.00024658,2]
[355009951,1740865843825,-154.4822667,0.00024658,2]
[355009952,1740865843834,-153.0,0.00024658,2]
[355009953,1740865843844,-153.0,0.00024658,2]
[355009954,1740865843854,-153.0,0.00024658,2]
[355009955,1740865843863,-306.0,0.00024658,2]
[355009956,1740865843873,-153.0,0.00024658,2]
[355009957,1740865843882,-153.0,0.00024658,2]
[355009958,1740865843892,-153.0,0.00024658,2]
[355009959,1740865843902,-306.0,0.00024658,2]
[355009960,1740865843911,-153.0,0.00024658,2]
[355009961,1740865843920,-153.0,0.00024658,2]
[355009962,1740865843930,-153.0,0.00024658,2]
[355009963,1740865843940,-153.0,0.00024658,2]
[355009964,1740865843949,-153.0,0.00024658,2]
[355009965,1740865843959,-500.0,0.00024673,2]
[355009966,1740865843968,-500.0,0.00024673,2]
[355009967,1740865843977,-500.0,0.00024673,2]
[355009968,1740865843987,-500.0,0.00024673,2]
[355009969,1740865843997,-500.0,0.00024673,2]
[355009970,1740865844007,-371.41551776,0.00024673,2]
[355009971,1740865844016,-500.0,0.00024673,2]
[355009972,1740865844025,-160.0,0.00024673,2]
[355009973,1740865844035,-500.0,0.00024673,2]
[355009974,1740865844045,-500.0,0.00024673,2]
[355009975,1740865844054,-500.0,0.00024673,2]
[355009976,1740865844064,-500.0,0.00024673,2]
[355009977,1740865844073,-500.0,0.00024673,2]
[355009978,1740865844083,-500.0,0.00024673,2]
[355009979,1740865844092,-500.0,0.00024673,2]
[355009980,1740865844101,-500.0,0.00024673,2]
[355009981,1740865844110,-500.0,0.00024673,2]
[355009982,1740865844120,-500.0,0.00024673,2]
[355009983,1740865844130,-500.0,0.00024673,2]
[355009984,1740865844139,-151.0,0.000247,9]
[355009985,1740865844149,-151.0,0.000247,7]
[355009986,1740865844159,-220.38105167,0.00024712,2]
[355009987,1740865844169,-220.38105167,0.00024712,2]
[355009988,1740865844178,-151.0,0.000248,7]
[355009989,1740865844188,-151.0,0.000248,8]
[355009990,1740865844197,-151.0,0.000248,7]
[355009991,1740865844207,-239.51487422,0.00024831,2]
[355009992,1740865844217,-151.0,0.000249,9]
[355009993,1740865844227,-151.0,0.000249,5]
[355009994,1740865844236,-151.0,0.000249,10]
[355009995,1740865844246,-500.0,0.00024931,2]
[355009996,1740865844255,-716.74,0.00024931,2]
[355009997,1740865844265,-500.0,0.00024931,2]
[355009998,1740865844274,-500.0,0.00024931,2]
[355009999,1740865844284,-500.0,0.00024931,2]
[355010000,1740865844294,-500.0,0.00024931,2]
[355010001,1740865844304,-500.0,0.00024931,2]
[355010002,1740865844313,-500.0,0.00024931,2]
[355010003,1740865844322,-611.89,0.00024931,2]
[355010004,1740865844333,-500.0,0.00024931,2]
[355010005,1740865844342,-302.51797588,0.00024931,2]
[355010006,1740865844351,-500.0,0.00024931,2]
[355010007,1740865844361,-902.31,0.00024931,2]
[355010008,1740865844371,-500.0,0.00024931,2]
[355010009,1740865844380,-500.0,0.00024931,2]
[355010010,1740865844390,-500.0,0.00024931,2]
[355010011,1740865844399,-500.0,0.00024931,2]
[355010012,1740865844409,-500.0,0.00024931,2]
[355010013,1740865844418,-500.0,0.00024931,2]
[355010014,1740865844428,-500.0,0.00024931,2]
[355010015,1740865844437,-500.0,0.00024931,2]
[355010016,1740865844446,-572.07,0.00024931,2]
[355010017,1740865844455,-159.55922748,0.00024931,2]
[355010018,1740865844464,-500.0,0.00024931,2]
[355010019,1740865844474,-500.0,0.00024931,2]
[355010020,1740865844484,-500.0,0.00024931,2]
[355010021,1740865844493,-1069.98,0.00024931,2]
[355010022,1740865844503,-500.0,0.00024931,2]
[355010023,1740865844512,-500.0,0.00024931,2]
[355010024,1740865844521,-500.0,0.00024931,2]
[355010025,1740865844531,-500.0,0.00024931,2]
[355010026,1740865844540,-518.42023982,0.00024931,2]
[355010027,1740865844553,-500.0,0.00024931,2]
[355010028,1740865844562,-500.0,0.00024931,2]
[355010029,1740865844572,-151.0,0.00024931,7]
[355010030,1740865844582,-151.0,0.00024931,7]
[355010031,1740865844592,-269.18299516,0.00024931,2]
[355010032,1740865844602,-761.98,0.00024931,2]
[355010033,1740865844611,-500.0,0.00024931,2]
[355010034,1740865844621,-500.0,0.00024931,2]
[355010035,1740865844631,-616.95,0.00024931,2]
[355010036,1740865844641,-151.0,0.00024931,7]
[355010037,1740865844650,-500.0,0.00024931,2]
[355010038,1740865844659,-500.0,0.00024931,2]
[355010039,1740865844668,-500.0,0.00024931,2]
[355010040,1740865844678,-793.31,0.00024931,2]
[355010041,1740865844688,-500.0,0.00024931,2]
[355010042,1740865844697,-500.0,0.00024931,2]
[355010043,1740865844706,-500.0,0.00024931,2]
[355010044,1740865844716,-633.80182,0.00024931,7]
[355010045,1740865844737,-500.0,0.00024931,2]
[355010046,1740865844748,-633.80182,0.00024931,7]
[355010047,1740865844758,-1040.31,0.00024931,2]
[355010048,1740865844768,-151.0,0.00024931,7]
[355010049,1740865844778,-151.0,0.00024931,7]
[355010050,1740865844787,-343.454498,0.00024931,7]
[355010051,1740865844796,-500.0,0.00024931,2]
[355010052,1740865844807,-343.454498,0.00024931,7]
[355010053,1740865844817,-500.0,0.00024931,2]
[355010054,1740865844827,-1041.91,0.00024931,2]
[355010055,1740865844836,-759.41,0.00024931,2]
[355010056,1740865844846,-500.0,0.00024931,2]
[355010057,1740865844855,-500.0,0.00024931,2]
[355010058,1740865844865,-151.0,0.00024931,7]
[355010059,1740865844874,-669.86,0.00024931,2]
[355010060,1740865844884,-170.402489,0.00024931,7]
[355010061,1740865844893,-998.27,0.00024931,2]
[355010062,1740865844903,-500.0,0.00024931,2]
[355010063,1740865844913,-668.29,0.00024931,2]
[355010064,1740865844922,-500.0,0.00024931,2]
[355010065,1740865844932,-981.47,0.00024931,2]
[355010066,1740865844942,-183.000529,0.00024931,7]
[355010067,1740865844952,-500.0,0.00024931,2]
[355010068,1740865844961,-500.0,0.00024931,2]
[355010069,1740865844971,-183.000529,0.00024931,7]
[355010070,1740865844980,-500.0,0.00024931,2]
[355010071,1740865844990,-1497.06,0.00024931,2]
[355010072,1740865845000,-500.0,0.00024931,2]
[355010073,1740865845009,-500.0,0.00024931,2]
[355010074,1740865845020,-500.0,0.00024931,2]
[355010075,1740865845030,-500.0,0.00024931,2]
[355010076,1740865845040,-500.0,0.00024931,2]
[355010077,1740865845049,-604.1262745,0.00024931,2]
[355010078,1740865845060,-1297.68,0.00024931,2]
[355010079,1740865845070,-886.8,0.00024931,2]
[355010080,1740865845081,-671.34,0.00024931,2]
[355010081,1740865845090,-500.0,0.00024931,2]
[355010082,1740865845100,-500.0,0.00024931,2]
[355010083,1740865845110,-500.0,0.00024931,2]
[355010084,1740865845119,-500.0,0.00024931,2]
[355010085,1740865845129,-653.48,0.00024931,2]
[355010086,1740865845138,-500.0,0.00024931,2]
[355010087,1740865845148,-500.0,0.00024931,2]
[355010088,1740865845157,-500.0,0.00024931,2]
[355010089,1740865845168,-1032.83,0.00024931,2]
[355010090,1740865845179,-500.0,0.00024931,2]
[355010091,1740865845189,-500.0,0.00024931,2]
[355010092,1740865845199,-1537.98,0.00024931,2]
[355010093,1740865845209,-500.0,0.00024931,2]
[355010094,1740865845218,-500.0,0.00024931,2]
[355010095,1740865845229,-1331.5,0.00024931,2]
[355010096,1740865845239,-500.0,0.00024931,2]
[355010097,1740865845251,-500.0,0.00024931,2]
[355010098,1740865845263,-500.0,0.00024931,2]
[355010099,1740865845274,-392.46962678,0.00024931,2]
[355010100,1740865845284,-500.0,0.00024931,2]
[355010101,1740865845295,-572.04,0.00024931,2]
[355010102,1740865845306,-500.0,0.00024931,2]
[355010104,1740865845317,-500.0,0.00024931,2]
[355010105,1740865845327,-608.56695377,0.00024931,2]
[355010106,1740865845338,-723.69,0.00024931,2]
[355010107,1740865845349,-500.0,0.00024931,2]
[355010108,1740865845360,-500.0,0.00024931,2]
[355010109,1740865845371,-500.0,0.00024931,2]
[355010111,1740865845384,-500.0,0.00024931,2]
[355010112,1740865845395,-284.68877623,0.00024931,2]
[355010113,1740865845405,-523.15,0.00024931,2]
[355010114,1740865845415,-1539.8,0.00024931,2]
[355010115,1740865845426,-1037.31,0.00024931,2]
[355010116,1740865845436,-500.0,0.00024931,2]
[355010117,1740865845447,-2368.87,0.00024931,2]
[355010118,1740865845457,-1909.25,0.00024931,2]
[355010119,1740865845467,-500.0,0.00024931,2]
[355010120,1740865845476,-500.0,0.00024931,2]
[355010121,1740865845487,-500.0,0.00024931,2]
[355010122,1740865845497,-500.0,0.00024931,2]
[355010123,1740865845508,-500.0,0.00024931,2]
[355010124,1740865845518,-1079.21,0.00024931,2]
[355010125,1740865845528,-500.0,0.00024931,2]
[355010126,1740865845539,-938.62,0.00024931,2]
[355010127,1740865845552,-500.0,0.00024931,2]
[355010128,1740865845562,-1532.28,0.00024931,2]
[355010129,1740865845572,-533.24,0.00024931,2]
[355010130,1740865845583,-1643.94,0.00024931,2]
[355010131,1740865845595,-151.0,0.00024931,7]
[355010132,1740865845606,-500.0,0.00024931,2]
[355010133,1740865845616,-524.5237942,0.00024931,2]
[355010134,1740865845628,-500.0,0.00024931,2]
[355010135,1740865845638,-500.0,0.00024931,2]
[355010136,1740865845648,-500.0,0.00024931,2]
[355010137,1740865845659,-500.0,0.00024931,2]
[355010138,1740865845669,-500.0,0.00024931,2]
[355010139,1740865845679,-296.06224926,0.00024931,2]
[355010140,1740865845690,-1047.29,0.00024931,2]
[355010141,1740865845700,-500.0,0.00024931,2]
[355010142,1740865845710,-151.0,0.00024931,7]
[355010143,1740865845720,-556.869405,0.00024931,2]
[355010144,1740865845730,-500.0,0.00024931,2]
[355010146,1740865845741,-659.33,0.00024931,2]
[355010147,1740865845752,-355.49674567,0.00024931,2]
[355010148,1740865845762,-500.0,0.00024931,2]
[355010149,1740865845772,-942.58,0.00024931,2]
[355010150,1740865845782,-848.54,0.00024931,2]
[355010151,1740865845793,-500.0,0.00024931,2]
[355010152,1740865845808,-1333.900915,0.00024931,5]
[355010153,1740865845818,-1333.900915,0.00024931,5]
[355010155,1740865845827,-500.0,0.00024931,2]
[355010156,1740865845837,-500.0,0.00024931,2]
[355010157,1740865845847,-280.884639,0.00024931,7]
[355010158,1740865845857,-280.884639,0.00024931,7]
[355010159,1740865845868,-1625.7,0.00024931,2]
[355010160,1740865845878,-280.884639,0.00024931,7]
[355010161,1740865845888,-280.884639,0.00024931,7]
[355010162,1740865845898,-2258.14,0.00024931,2]
[355010163,1740865845908,-520.02,0.00024931,2]
[355010164,1740865845918,-500.0,0.00024931,2]
[355010165,1740865845928,-500.0,0.00024931,2]
[355010166,1740865845938,-500.0,0.00024931,2]
[355010167,1740865845948,-500.0,0.00024931,2]
[355010168,1740865845958,-500.0,0.00024931,2]
[355010169,1740865845968,-500.0,0.00024931,2]
[355010170,1740865845978,-509.00241629,0.00024931,2]
[355010171,1740865845988,-500.0,0.00024931,2]
[355010173,1740865845998,-574.97,0.00024931,2]
[355010174,1740865846008,-590.48,0.00024931,2]
[355010175,1740865846017,-1142.55,0.00024931,2]
[355010176,1740865846027,-500.0,0.00024931,2]
[355010177,1740865846038,-151.0,0.00024931,7]
[355010178,1740865846048,-151.0,0.00024931,7]
[355010180,1740865846058,-500.0,0.00024931,2]
[355010181,1740865846068,-151.0,0.00024931,7]
[355010182,1740865846078,-151.0,0.00024931,7]
[355010183,1740865846088,-500.0,0.00024931,2]
[355010184,1740865846103,-500.0,0.00024931,2]
[355010185,1740865846114,-500.0,0.00024931,2]
[355010186,1740865846124,-777.85,0.00024931,2]
[355010187,1740865846134,-994.07,0.00024931,2]
[355010188,1740865846144,-500.0,0.00024931,2]
[355010189,1740865846154,-500.0,0.00024931,2]
[355010190,1740865846164,-151.0,0.00024931,7]
[355010191,1740865846174,-151.0,0.00024931,7]
[355010192,1740865846184,-500.0,0.00024931,2]
[355010193,1740865846194,-500.0,0.00024931,2]
[355010194,1740865846204,-500.0,0.00024931,2]
[355010195,1740865846214,-675.53,0.00024931,2]
[355010196,1740865846224,-847.13,0.00024931,2]
[355010197,1740865846235,-500.0,0.00024931,2]
[355010198,1740865846244,-922.77,0.00024931,2]
[355010199,1740865846255,-541.587699,0.00024931,7]
[355010200,1740865846264,-541.587699,0.00024931,7]
[355010201,1740865846274,-525.53051433,0.00024931,2]
[355010202,1740865846284,-890.33,0.00024931,2]
[355010203,1740865846294,-736.17,0.00024931,2]
[355010204,1740865846304,-541.587699,0.00024931,7]
[355010205,1740865846314,-659.61,0.00024931,2]
[355010206,1740865846325,-541.587699,0.00024931,7]
[355010207,1740865846335,-151.0,0.00024931,7]
[355010208,1740865846346,-151.0,0.00024931,7]
[355010209,1740865846356,-1130.53,0.00024931,2]
[355010210,1740865846366,-500.0,0.00024931,2]
[355010211,1740865846378,-500.0,0.00024931,2]
[355010212,1740865846389,-500.0,0.00024931,2]
[355010213,1740865846400,-500.0,0.00024931,2]
[355010214,1740865846411,-500.0,0.00024931,2]
[355010215,1740865846422,-500.0,0.00024931,2]
[355010216,1740865846432,-1550.64,0.00024931,2]
[355010217,1740865846442,-500.0,0.00024931,2]
[355010218,1740865846453,-518.15,0.00024931,2]
[355010219,1740865846463,-151.0,0.00024931,7]
[355010220,1740865846473,-500.0,0.00024931,2]
[355010221,1740865846483,-563.74,0.00024931,2]
[355010222,1740865846493,-500.0,0.00024931,2]
[355010223,1740865846503,-1430.17,0.00024931,2]
[355010224,1740865846513,-500.0,0.00024931,2]
[355010225,1740865846523,-500.0,0.00024931,2]
[355010226,1740865846533,-527.89596878,0.00024931,2]
[355010227,1740865846544,-1881.27,0.00024931,2]
[355010228,1740865846558,-151.0,0.00024931,7]
[355010229,1740865846567,-4236.82,0.00024931,2]
[355010230,1740865846577,-863.69,0.00024931,2]
[355010231,1740865846588,-679.89,0.00024931,2]
[355010232,1740865846598,-500.0,0.00024931,2]
[355010233,1740865846608,-388.76830001,0.00024931,2]
[355010234,1740865846618,-500.0,0.00024931,2]
[355010235,1740865846627,-1693.47,0.00024931,2]
[355010236,1740865846638,-500.0,0.00024931,2]
[355010237,1740865846648,-500.0,0.00024931,2]
[355010238,1740865846658,-500.0,0.00024931,2]
[355010239,1740865846669,-500.0,0.00024931,2]
[355010240,1740865846679,-1358.57,0.00024931,2]
[355010241,1740865846688,-3797.89,0.00024931,2]
[355010242,1740865846698,-500.0,0.00024931,2]
[355010243,1740865846708,-317.1,0.00024931,2]
[355010244,1740865846718,-500.0,0.00024931,2]
[355010245,1740865846728,-626.03,0.00024931,2]
[355010246,1740865846738,-500.0,0.00024931,2]
[355010247,1740865846748,-177.307463,0.00024931,7]
[355010248,1740865846759,-519.85,0.00024931,2]
[355010249,1740865846769,-500.0,0.00024931,2]
[355010250,1740865846779,-177.307463,0.00024931,7]
[355010251,1740865846789,-172855.44,0.00024931,2]
[355010252,1740865846799,-500.0,0.00024931,2]
[355010253,1740865846809,-160.0,0.00024931,7]
[355010254,1740865846819,-708.1,0.00024931,2]
[355010255,1740865846829,-1016.72,0.00024931,2]
[355010256,1740865846839,-187.297976,0.00024931,7]
[355010257,1740865846848,-163.023886,0.00024931,7]
[355010258,1740865846858,-163.023886,0.00024931,7]
[355010259,1740865846868,-500.0,0.00024931,2]
[355010260,1740865846878,-548.03,0.00024931,2]
[355010261,1740865846888,-500.0,0.00024931,2]
[355010262,1740865846898,-500.0,0.00024931,2]
[355010263,1740865846908,-835.93,0.00024931,2]
[355010264,1740865846918,-500.0,0.00024931,2]
[355010265,1740865846928,-3404.99,0.00024931,2]
[355010266,1740865846938,-500.0,0.00024931,2]
[355010267,1740865846948,-500.0,0.00024931,2]
[355010268,1740865846958,-507.75302254,0.00024931,2]
[355010269,1740865846968,-500.0,0.00024931,2]
[355010270,1740865846978,-247.390395,0.00024931,7]
[355010271,1740865846988,-713.04,0.00024931,2]